[Event "MČR v bleskovém šachu družstev 2019"]
[Site "Teplice, Czech Republic"]
[Date "2019.09.14"]
[Round "1.11"]
[White "Hoke, Petr"]
[Black "Vrbata, Zbynek"]
[Result "1/2-1/2"]
[TimeControl "3 mim. + 2 s"]
[BlackTitle "FM"]
[WhiteFideId "305006"]
[BlackFideId "301256"]
[WhiteElo "1946"]
[BlackElo "2324"]

1. e4 {[%clk 00:03:02]} {[%emt 00:00:01]} e6 {[%clk 00:03:04]} 2. d3 {[%clk
00:03:03]} {[%emt 00:00:01]} d5 {[%clk 00:03:04]} {[%emt 00:00:02]} 3. Nd2
{[%clk 00:03:04]} {[%emt 00:00:01]} Nf6 {[%clk 00:03:03]} {[%emt 00:00:02]} 4.
c3 {[%clk 00:03:05]} {[%emt 00:00:01]} c5 {[%clk 00:03:00]} {[%emt 00:00:05]} 5.
g3 {[%clk 00:03:04]} {[%emt 00:00:03]} Nc6 {[%clk 00:03:01]} {[%emt 00:00:02]}
6. Bg2 {[%clk 00:03:05]} {[%emt 00:00:01]} dxe4 {[%clk 00:03:01]} {[%emt
00:00:02]} 7. Nxe4 {[%clk 00:03:02]} {[%emt 00:00:04]} Be7 {[%clk 00:02:58]}
{[%emt 00:00:04]} 8. Be3 {[%clk 00:03:00]} {[%emt 00:00:05]} Nd5 {[%clk
00:02:56]} {[%emt 00:00:04]} 9. Bxc5 {[%clk 00:02:54]} {[%emt 00:00:07]} Bxc5
{[%clk 00:02:51]} {[%emt 00:00:07]} 10. Nxc5 {[%clk 00:02:55]} {[%emt
00:00:01]} O-O {[%clk 00:02:49]} {[%emt 00:00:03]} 11. Nf3 {[%clk 00:02:45]}
{[%emt 00:00:12]} Qb6 {[%clk 00:02:49]} {[%emt 00:00:02]} 12. Nb3 {[%clk
00:02:46]} a5 {[%clk 00:02:50]} {[%emt 00:00:02]} 13. Qc2 {[%clk 00:02:41]}
{[%emt 00:00:07]} e5 {[%clk 00:02:49]} {[%emt 00:00:04]} 14. Nh4 {[%clk
00:02:28]} {[%emt 00:00:15]} Be6 {[%clk 00:02:46]} {[%emt 00:00:05]} 15. O-O
{[%clk 00:02:27]} {[%emt 00:00:02]} Rac8 {[%clk 00:02:45]} {[%emt 00:00:03]} 16.
Qe2 {[%clk 00:02:22]} {[%emt 00:00:07]} a4 {[%clk 00:02:43]} {[%emt 00:00:04]}
17. Nc1 {[%clk 00:02:13]} {[%emt 00:00:12]} Rfe8 {[%clk 00:02:41]} {[%emt
00:00:04]} 18. a3 {[%clk 00:02:13]} {[%emt 00:00:02]} Rcd8 {[%clk 00:02:39]}
{[%emt 00:00:03]} 19. Na2 {[%clk 00:02:14]} {[%emt 00:00:01]} f6 {[%clk
00:02:24]} {[%emt 00:00:17]} 20. Rfe1 {[%clk 00:02:06]} {[%emt 00:00:10]} Na5
{[%clk 00:02:21]} {[%emt 00:00:05]} 21. Nb4 {[%clk 00:02:05]} {[%emt 00:00:03]}
Nc7 {[%clk 00:02:13]} {[%emt 00:00:09]} 22. Rad1 {[%clk 00:01:51]} {[%emt
00:00:16]} Bb3 {[%clk 00:02:10]} {[%emt 00:00:05]} 23. Rd2 {[%clk 00:01:52]}
{[%emt 00:00:02]} Be6 {[%clk 00:02:10]} {[%emt 00:00:02]} 24. Qf3 {[%clk
00:01:51]} {[%emt 00:00:03]} Nb3 {[%clk 00:02:08]} {[%emt 00:00:04]} 25. Rdd1
{[%clk 00:01:51]} {[%emt 00:00:02]} Nc5 {[%clk 00:02:08]} {[%emt 00:00:01]} 26.
Nf5 {[%clk 00:01:41]} {[%emt 00:00:13]} g6 {[%clk 00:02:01]} {[%emt 00:00:10]}
27. Ne3 {[%clk 00:01:42]} Kg7 {[%clk 00:02:01]} {[%emt 00:00:02]} 28. Nc4
{[%clk 00:01:43]} {[%emt 00:00:01]} Qa7 {[%clk 00:01:57]} {[%emt 00:00:07]} 29.
Ne3 {[%clk 00:01:13]} {[%emt 00:00:31]} Bb3 {[%clk 00:01:57]} {[%emt 00:00:02]}
30. Rd2 {[%clk 00:01:15]} Be6 {[%clk 00:01:56]} {[%emt 00:00:03]} 31. Ng4
{[%clk 00:01:15]} {[%emt 00:00:01]} Rf8 {[%clk 00:01:52]} {[%emt 00:00:06]} 32.
Ne3 {[%clk 00:01:16]} {[%emt 00:00:01]} Nb3 {[%clk 00:01:42]} {[%emt 00:00:11]}
33. Rdd1 {[%clk 00:01:17]} {[%emt 00:00:01]} Nc5 {[%clk 00:01:43]} 34. Rd2
{[%clk 00:01:18]} Rf7 {[%clk 00:01:39]} {[%emt 00:00:07]} 35. Nec2 {[%clk
00:01:19]} {[%emt 00:00:02]} Rfd7 {[%clk 00:01:35]} {[%emt 00:00:05]} 36. d4
{[%clk 00:01:17]} {[%emt 00:00:04]} Nb3 {[%clk 00:01:35]} {[%emt 00:00:02]} 37.
Rde2 {[%clk 00:01:18]} {[%emt 00:00:01]} Bc4 {[%clk 00:01:35]} {[%emt
00:00:02]} 38. Re3 {[%clk 00:01:17]} {[%emt 00:00:04]} Nd2 {[%clk 00:01:29]}
{[%emt 00:00:07]} 39. Qxb7 {[%clk 00:01:17]} {[%emt 00:00:02]} Qxb7 {[%clk
00:01:29]} {[%emt 00:00:03]} 40. Bxb7 {[%clk 00:01:18]} {[%emt 00:00:01]} Ne6
{[%clk 00:01:26]} {[%emt 00:00:05]} 41. Bc6 {[%clk 00:01:16]} {[%emt 00:00:04]}
Rd6 {[%clk 00:01:23]} {[%emt 00:00:05]} 42. dxe5 {[%clk 00:01:15]} {[%emt
00:00:03]} fxe5 {[%clk 00:01:24]} 43. Bg2 {[%clk 00:01:11]} {[%emt 00:00:06]}
Ng5 {[%clk 00:01:19]} {[%emt 00:00:07]} 44. h4 {[%clk 00:01:07]} {[%emt
00:00:05]} Nf7 {[%clk 00:01:20]} 45. Bc6 {[%clk 00:00:53]} {[%emt 00:00:16]} g5
{[%clk 00:01:12]} {[%emt 00:00:11]} 46. Bg2 {[%clk 00:00:53]} {[%emt 00:00:03]}
h6 {[%clk 00:01:10]} {[%emt 00:00:04]} 47. Nc6 {[%clk 00:00:52]} {[%emt
00:00:02]} Rf8 {[%clk 00:00:50]} {[%emt 00:00:21]} 48. Nxe5 {[%clk 00:00:53]}
{[%emt 00:00:02]} Nxe5 {[%clk 00:00:51]} 49. Rxe5 {[%clk 00:00:54]} gxh4 {[%clk
00:00:50]} {[%emt 00:00:03]} 50. gxh4 {[%clk 00:00:54]} {[%emt 00:00:02]} Rg6
{[%clk 00:00:51]} {[%emt 00:00:01]} 51. Re7+ {[%clk 00:00:43]} {[%emt
00:00:13]} Kh8 {[%clk 00:00:52]} {[%emt 00:00:01]} 52. R1e6 {[%clk 00:00:33]}
{[%emt 00:00:12]} Nf3+ {[%clk 00:00:49]} {[%emt 00:00:04]} 53. Kh1 {[%clk
00:00:32]} {[%emt 00:00:03]} Nxh4 {[%clk 00:00:50]} {[%emt 00:00:01]} 54. Rxg6
{[%clk 00:00:33]} {[%emt 00:00:02]} Nxg6 {[%clk 00:00:51]} {[%emt 00:00:01]} 55.
Rc7 {[%clk 00:00:27]} {[%emt 00:00:08]} Bb3 {[%clk 00:00:51]} {[%emt 00:00:02]}
56. Ne3 {[%clk 00:00:26]} {[%emt 00:00:02]} Rxf2 {[%clk 00:00:49]} {[%emt
00:00:04]} 57. Kg1 {[%clk 00:00:22]} {[%emt 00:00:06]} Rxb2 {[%clk 00:00:50]}
{[%emt 00:00:01]} 58. Be4 {[%clk 00:00:22]} {[%emt 00:00:01]} Nf8 {[%clk
00:00:50]} {[%emt 00:00:02]} 59. Rc8 {[%clk 00:00:22]} {[%emt 00:00:03]} Kg7
{[%clk 00:00:51]} 60. Nf5+ {[%clk 00:00:23]} Kf7 {[%clk 00:00:52]} {[%emt
00:00:01]} 61. Nxh6+ {[%clk 00:00:24]} {[%emt 00:00:01]} Ke7 {[%clk 00:00:53]}
62. Nf5+ {[%clk 00:00:25]} {[%emt 00:00:02]} Kf7 {[%clk 00:00:54]} 63. Nd6+
{[%clk 00:00:26]} Ke6 {[%clk 00:00:54]} {[%emt 00:00:03]} 64. Nf5 {[%clk
00:00:20]} {[%emt 00:00:08]} Nd7 {[%clk 00:00:53]} {[%emt 00:00:03]} 65. Re8+
{[%clk 00:00:20]} {[%emt 00:00:02]} Kf6 {[%clk 00:00:54]} {[%emt 00:00:01]} 66.
Rd8 {[%clk 00:00:16]} {[%emt 00:00:06]} Rd2 {[%clk 00:00:53]} {[%emt 00:00:02]}
67. Nd4 {[%clk 00:00:15]} {[%emt 00:00:03]} Ne5 {[%clk 00:00:52]} {[%emt
00:00:04]} 68. Rd6+ {[%clk 00:00:15]} {[%emt 00:00:01]} Ke7 {[%clk 00:00:51]}
{[%emt 00:00:02]} 69. Rb6 {[%clk 00:00:14]} {[%emt 00:00:03]} Bc4 {[%clk
00:00:51]} {[%emt 00:00:02]} 70. Rb7+ {[%clk 00:00:14]} {[%emt 00:00:02]} Kd6
{[%clk 00:00:52]} {[%emt 00:00:02]} 71. Rb6+ {[%clk 00:00:13]} {[%emt
00:00:03]} Kc7 {[%clk 00:00:52]} {[%emt 00:00:01]} 72. Rb4 {[%clk 00:00:14]}
{[%emt 00:00:01]} Ra2 {[%clk 00:00:50]} {[%emt 00:00:04]} 73. Nb5+ {[%clk
00:00:10]} {[%emt 00:00:05]} Kd7 {[%clk 00:00:49]} {[%emt 00:00:03]} 74. Nd4
{[%clk 00:00:11]} {[%emt 00:00:01]} Rxa3 {[%clk 00:00:50]} {[%emt 00:00:01]} 75.
Nb5 {[%clk 00:00:11]} {[%emt 00:00:02]} Ra2 {[%clk 00:00:49]} {[%emt 00:00:03]}
76. Nd4 {[%clk 00:00:10]} {[%emt 00:00:03]} a3 {[%clk 00:00:50]} {[%emt
00:00:01]} 77. Nb5 {[%clk 00:00:10]} {[%emt 00:00:02]} Rb2 {[%clk 00:00:48]}
{[%emt 00:00:04]} 78. Nxa3 {[%clk 00:00:10]} {[%emt 00:00:02]} Re2 {[%clk
00:00:48]} {[%emt 00:00:01]} 79. Nxc4 {[%clk 00:00:11]} {[%emt 00:00:01]} Nc6
{[%clk 00:00:44]} {[%emt 00:00:06]} 80. Rb7+ {[%clk 00:00:11]} {[%emt
00:00:02]} Kd8 {[%clk 00:00:44]} {[%emt 00:00:01]} 81. Bd3 {[%clk 00:00:12]}
{[%emt 00:00:01]} Ra2 {[%clk 00:00:41]} {[%emt 00:00:04]} 82. Rb2 {[%clk
00:00:13]} {[%emt 00:00:01]} Ra1+ {[%clk 00:00:41]} {[%emt 00:00:03]} 83. Kf2
{[%clk 00:00:14]} Ne7 {[%clk 00:00:43]} 84. Kf3 {[%clk 00:00:14]} {[%emt
00:00:01]} Nd5 {[%clk 00:00:44]} 85. Ke4 {[%clk 00:00:16]} Nxc3+ {[%clk
00:00:45]} 86. Kd4 {[%clk 00:00:17]} Nd1 {[%clk 00:00:46]} {[%emt 00:00:02]} 87.
Kc5 {[%clk 00:00:17]} {[%emt 00:00:02]} Ke7 {[%clk 00:00:47]} 88. Rb7+ {[%clk
00:00:17]} {[%emt 00:00:03]} Kf6 {[%clk 00:00:48]} 89. Be4 {[%clk 00:00:18]}
{[%emt 00:00:01]} Nf2 {[%clk 00:00:49]} {[%emt 00:00:01]} 90. Bd5 {[%clk
00:00:19]} {[%emt 00:00:01]} Nd3+ {[%clk 00:00:50]} 91. Kd4 {[%clk 00:00:20]}
{[%emt 00:00:01]} Nf4 {[%clk 00:00:50]} {[%emt 00:00:02]} 92. Rb6+ {[%clk
00:00:20]} {[%emt 00:00:01]} Kg5 {[%clk 00:00:51]} 93. Ne5 {[%clk 00:00:21]}
{[%emt 00:00:01]} Rd1+ {[%clk 00:00:50]} {[%emt 00:00:02]} 94. Ke4 {[%clk
00:00:22]} Nxd5 {[%clk 00:00:50]} {[%emt 00:00:02]} 95. Nf3+ {[%clk 00:00:22]}
{[%emt 00:00:02]} Kh5 {[%clk 00:00:51]} {[%emt 00:00:01]} 96. Rb5 {[%clk
00:00:22]} {[%emt 00:00:02]} Kg4 {[%clk 00:00:50]} {[%emt 00:00:03]} 97. Rxd5
{[%clk 00:00:23]} {[%emt 00:00:02]} Rxd5 98. Kxd5 {[%clk 00:00:24]} Kxf3 {[%clk
00:00:24]} {[%emt 00:00:01]} 99. Kc4 1/2-1/2

[Event "MČR v bleskovém šachu družstev 2019"]
[Site "Teplice, Czech Republic"]
[Date "2019.09.14"]
[Round "1.12"]
[White "Kuba, Jindrich"]
[Black "Pospichal, Michael"]
[Result "1/2-1/2"]
[TimeControl "3 mim. + 2 s"]
[WhiteTitle "FM"]
[WhiteFideId "318248"]
[BlackFideId "387274"]
[WhiteElo "2223"]
[BlackElo "1598"]

1. e4 {[%clk 00:03:03]} {[%emt 01:56:44]} c6 {[%clk 00:03:04]} {[%emt
00:00:01]} 2. d4 {[%clk 00:03:03]} {[%emt 00:00:01]} d5 {[%clk 00:03:05]} 3.
exd5 {[%clk 00:03:04]} {[%emt 00:00:02]} cxd5 {[%clk 00:03:06]} 4. Nc3 {[%clk
00:03:01]} {[%emt 00:00:04]} Nf6 {[%clk 00:03:01]} {[%emt 00:00:07]} 5. Nf3
{[%clk 00:03:02]} {[%emt 00:00:01]} Bg4 {[%clk 00:03:01]} {[%emt 00:00:02]} 6.
Be2 {[%clk 00:02:59]} {[%emt 00:00:05]} Bxf3 {[%clk 00:02:54]} {[%emt
00:00:09]} 7. Bxf3 {[%clk 00:02:59]} {[%emt 00:00:02]} e6 {[%clk 00:02:54]}
{[%emt 00:00:01]} 8. O-O {[%clk 00:02:53]} {[%emt 00:00:07]} Nc6 {[%clk
00:02:55]} 9. Re1 {[%clk 00:02:34]} {[%emt 00:00:21]} Qb6 {[%clk 00:02:31]}
{[%emt 00:00:26]} 10. Nxd5 {[%clk 00:01:53]} {[%emt 00:00:43]} Nxd5 {[%clk
00:01:58]} {[%emt 00:00:35]} 11. Bxd5 {[%clk 00:01:54]} {[%emt 00:00:01]} Nxd4
{[%clk 00:01:42]} {[%emt 00:00:18]} 12. Be3 {[%clk 00:01:51]} {[%emt 00:00:05]}
Bc5 {[%clk 00:01:34]} {[%emt 00:00:09]} 13. c3 {[%clk 00:01:44]} {[%emt
00:00:09]} Nf5 {[%clk 00:00:40]} {[%emt 00:00:56]} 14. Bxc5 {[%clk 00:01:42]}
{[%emt 00:00:05]} Qxc5 {[%clk 00:00:33]} {[%emt 00:00:09]} 15. Qa4+ {[%clk
00:01:43]} {[%emt 00:00:01]} b5 {[%clk 00:00:18]} {[%emt 00:00:17]} 16. Qb3
{[%clk 00:01:26]} {[%emt 00:00:18]} Rd8 {[%clk 00:00:15]} {[%emt 00:00:04]} 17.
Bxe6 {[%clk 00:00:58]} {[%emt 00:00:31]} fxe6 {[%clk 00:00:16]} 18. Qxe6+
{[%clk 00:00:58]} {[%emt 00:00:02]} Ne7 {[%clk 00:00:17]} 19. Rad1 {[%clk
00:00:59]} {[%emt 00:00:01]} Rxd1 {[%clk 00:00:16]} {[%emt 00:00:03]} 20. Rxd1
{[%clk 00:01:00]} Rf8 {[%clk 00:00:10]} {[%emt 00:00:08]} 21. Rd2 {[%clk
00:00:46]} {[%emt 00:00:16]} Rf6 {[%clk 00:00:10]} {[%emt 00:00:03]} 1/2-1/2

[Event "MČR v bleskovém šachu družstev 2019"]
[Site "Teplice, Czech Republic"]
[Date "2019.09.14"]
[Round "1.13"]
[White "Vykouk, Jan"]
[Black "Novotny, Michal"]
[Result "0-1"]
[TimeControl "3 mim. + 2 s"]
[WhiteTitle "IM"]
[BlackTitle "FM"]
[BlackFideId "310980"]
[WhiteElo "2439"]
[BlackElo "2299"]

1. e4 {[%clk 00:03:02]} {[%emt 00:00:01]} e6 {[%clk 00:03:03]} {[%emt
00:00:01]} 2. d4 {[%clk 00:03:02]} {[%emt 00:00:02]} d5 {[%clk 00:03:04]}
{[%emt 00:00:01]} 3. Nd2 {[%clk 00:03:02]} {[%emt 00:00:02]} a6 {[%clk
00:03:04]} {[%emt 00:00:01]} 4. Ngf3 {[%clk 00:02:58]} {[%emt 00:00:06]} c5
{[%clk 00:03:05]} {[%emt 00:00:02]} 5. exd5 {[%clk 00:02:30]} {[%emt 00:00:30]}
exd5 {[%clk 00:03:06]} {[%emt 00:00:01]} 6. dxc5 {[%clk 00:02:30]} {[%emt
00:00:02]} Bxc5 {[%clk 00:03:06]} {[%emt 00:00:01]} 7. Nb3 {[%clk 00:02:29]}
{[%emt 00:00:03]} Bb6 {[%clk 00:03:04]} {[%emt 00:00:04]} 8. Be2 {[%clk
00:02:26]} {[%emt 00:00:05]} Nf6 {[%clk 00:02:59]} {[%emt 00:00:07]} 9. O-O
{[%clk 00:02:26]} {[%emt 00:00:02]} O-O {[%clk 00:02:59]} {[%emt 00:00:03]} 10.
Nfd4 {[%clk 00:02:26]} {[%emt 00:00:02]} Nc6 {[%clk 00:02:53]} {[%emt
00:00:08]} 11. c3 {[%clk 00:02:26]} {[%emt 00:00:02]} Re8 {[%clk 00:02:34]}
{[%emt 00:00:21]} 12. Bg5 {[%clk 00:02:22]} {[%emt 00:00:05]} h6 {[%clk
00:02:34]} {[%emt 00:00:03]} 13. Bh4 {[%clk 00:02:22]} {[%emt 00:00:02]} g5
{[%clk 00:02:34]} {[%emt 00:00:02]} 14. Bg3 {[%clk 00:02:22]} {[%emt 00:00:03]}
Ne4 {[%clk 00:02:34]} 15. Bd3 {[%clk 00:01:34]} {[%emt 00:00:51]} Qf6 {[%clk
00:02:20]} {[%emt 00:00:16]} 16. Bc2 {[%clk 00:01:04]} {[%emt 00:00:33]} Bd7
{[%clk 00:02:03]} {[%emt 00:00:20]} 17. f4 {[%clk 00:01:01]} {[%emt 00:00:04]}
Nxd4 {[%clk 00:01:35]} {[%emt 00:00:31]} 18. Nxd4 {[%clk 00:00:53]} {[%emt
00:00:09]} Bxd4+ {[%clk 00:01:35]} {[%emt 00:00:03]} 19. cxd4 {[%clk 00:00:42]}
{[%emt 00:00:14]} Bb5 {[%clk 00:01:27]} {[%emt 00:00:10]} 20. Bxe4 {[%clk
00:00:06]} {[%emt 00:00:38]} Rxe4 {[%clk 00:01:13]} {[%emt 00:00:15]} 21. Rf2
{[%clk 00:00:04]} {[%emt 00:00:04]} Rxd4 {[%clk 00:01:11]} {[%emt 00:00:05]} 22.
Qh5 {[%clk 00:00:03]} {[%emt 00:00:01]} Rf8 {[%clk 00:01:01]} {[%emt 00:00:12]}
23. fxg5 {[%clk 00:00:03]} {[%emt 00:00:02]} Qxg5 {[%clk 00:01:02]} {[%emt
00:00:01]} 24. Qxg5+ {[%clk 00:00:04]} {[%emt 00:00:02]} hxg5 {[%clk 00:01:03]}
25. Re1 {[%clk 00:00:04]} {[%emt 00:00:03]} Re4 {[%clk 00:00:56]} {[%emt
00:00:10]} 26. Rd1 {[%clk 00:00:03]} {[%emt 00:00:03]} Rc8 {[%clk 00:00:49]}
{[%emt 00:00:08]} 27. Rf5 {[%clk 00:00:03]} {[%emt 00:00:02]} g4 {[%clk
00:00:35]} {[%emt 00:00:16]} 28. Rfxd5 {[%clk 00:00:04]} {[%emt 00:00:01]} Rc2
{[%clk 00:00:32]} {[%emt 00:00:05]} 29. R5d2 {[%clk 00:00:06]} {[%emt
00:00:01]} Rxd2 {[%clk 00:00:24]} {[%emt 00:00:10]} 30. Rxd2 {[%clk 00:00:07]}
Rc4 {[%clk 00:00:25]} 31. Kf2 {[%clk 00:00:07]} {[%emt 00:00:02]} Rc6 {[%clk
00:00:25]} {[%emt 00:00:02]} 32. Ke3 {[%clk 00:00:08]} {[%emt 00:00:02]} Kg7
{[%clk 00:00:25]} {[%emt 00:00:01]} 33. Kd4 {[%clk 00:00:05]} {[%emt 00:00:05]}
Rc4+ {[%clk 00:00:23]} {[%emt 00:00:05]} 34. Ke5 {[%clk 00:00:05]} {[%emt
00:00:02]} Kg6 {[%clk 00:00:21]} {[%emt 00:00:04]} 35. Rd6+ {[%clk 00:00:05]}
{[%emt 00:00:01]} Kg7 {[%clk 00:00:22]} {[%emt 00:00:02]} 36. Rd2 {[%clk
00:00:06]} {[%emt 00:00:01]} Kg6 {[%clk 00:00:23]} 37. b3 {[%clk 00:00:07]}
{[%emt 00:00:02]} Rc5+ {[%clk 00:00:22]} {[%emt 00:00:02]} 38. Kd6 {[%clk
00:00:06]} {[%emt 00:00:02]} Rc6+ {[%clk 00:00:22]} {[%emt 00:00:02]} 39. Ke5
{[%clk 00:00:05]} {[%emt 00:00:03]} f6+ {[%clk 00:00:23]} 40. Kd4 {[%clk
00:00:06]} {[%emt 00:00:02]} Re6 {[%clk 00:00:21]} {[%emt 00:00:04]} 41. a4
{[%clk 00:00:05]} {[%emt 00:00:02]} Bc6 {[%clk 00:00:22]} 42. Kc5 {[%clk
00:00:05]} {[%emt 00:00:03]} Re3 {[%clk 00:00:22]} {[%emt 00:00:02]} 43. Rb2
{[%clk 00:00:00]} {[%emt 00:00:05]} 0-1

[Event "MČR v bleskovém šachu družstev 2019"]
[Site "Teplice, Czech Republic"]
[Date "2019.09.14"]
[Round "1.14"]
[White "Rolinek, Dominik"]
[Black "Studnicka, Tomas"]
[Result "1/2-1/2"]
[TimeControl "3 mim. + 2 s"]
[BlackTitle "IM"]
[WhiteFideId "384569"]
[WhiteElo "1885"]
[BlackElo "2215"]

1. d4 {[%clk 00:03:03]} {[%emt 00:00:01]} Nf6 {[%clk 00:03:03]} {[%emt
00:00:01]} 2. Bf4 {[%clk 00:03:04]} {[%emt 00:00:01]} d5 {[%clk 00:02:59]}
{[%emt 00:00:06]} 3. Nf3 {[%clk 00:03:03]} {[%emt 00:00:03]} c5 {[%clk
00:02:59]} {[%emt 00:00:02]} 4. e3 {[%clk 00:03:02]} {[%emt 00:00:02]} Nc6
{[%clk 00:03:00]} {[%emt 00:00:01]} 5. Nc3 {[%clk 00:02:56]} {[%emt 00:00:08]}
Bf5 {[%clk 00:02:35]} {[%emt 00:00:27]} 6. Ne5 {[%clk 00:02:48]} {[%emt
00:00:10]} a6 {[%clk 00:02:17]} {[%emt 00:00:20]} 7. Bd3 {[%clk 00:02:25]}
{[%emt 00:00:24]} Bxd3 {[%clk 00:02:14]} {[%emt 00:00:05]} 8. Qxd3 {[%clk
00:02:26]} {[%emt 00:00:01]} e6 {[%clk 00:02:11]} {[%emt 00:00:05]} 9. O-O
{[%clk 00:02:18]} {[%emt 00:00:10]} Qb6 {[%clk 00:01:55]} {[%emt 00:00:17]} 10.
Na4 {[%clk 00:02:05]} {[%emt 00:00:14]} Qb4 {[%clk 00:01:56]} {[%emt 00:00:03]}
11. Nxc6 {[%clk 00:01:31]} {[%emt 00:00:36]} bxc6 {[%clk 00:01:31]} {[%emt
00:00:27]} 12. Nxc5 {[%clk 00:01:32]} {[%emt 00:00:02]} Bxc5 {[%clk 00:01:32]}
{[%emt 00:00:01]} 13. dxc5 {[%clk 00:01:33]} {[%emt 00:00:01]} Qxc5 {[%clk
00:01:32]} {[%emt 00:00:01]} 14. Be5 {[%clk 00:01:23]} {[%emt 00:00:11]} O-O
{[%clk 00:01:31]} {[%emt 00:00:04]} 15. Bxf6 {[%clk 00:01:23]} {[%emt
00:00:02]} gxf6 {[%clk 00:01:32]} {[%emt 00:00:01]} 16. Rac1 {[%clk 00:00:58]}
{[%emt 00:00:25]} Qb5 {[%clk 00:01:23]} {[%emt 00:00:12]} 17. Qc3 {[%clk
00:00:50]} {[%emt 00:00:10]} f5 {[%clk 00:01:19]} {[%emt 00:00:06]} 18. Rfd1
{[%clk 00:00:47]} {[%emt 00:00:05]} c5 {[%clk 00:01:14]} {[%emt 00:00:08]} 19.
Qf6 {[%clk 00:00:36]} {[%emt 00:00:12]} Qb6 {[%clk 00:01:07]} {[%emt 00:00:09]}
20. Qg5+ {[%clk 00:00:34]} {[%emt 00:00:04]} Kh8 {[%clk 00:01:08]} {[%emt
00:00:01]} 21. Qf6+ {[%clk 00:00:35]} Kg8 {[%clk 00:01:10]} 22. Qg5+ {[%clk
00:00:34]} {[%emt 00:00:03]} 1/2-1/2

[Event "MČR v bleskovém šachu družstev 2019"]
[Site "Teplice, Czech Republic"]
[Date "2019.09.14"]
[Round "1.15"]
[White "Cech, Pavel"]
[Black "Richtr, Zdenek"]
[Result "1-0"]
[TimeControl "3 mim. + 2 s"]
[WhiteTitle "IM"]
[BlackFideId "301248"]
[WhiteElo "2387"]
[BlackElo "2138"]

1. e4 {[%emt 02:14:49]} c5 {[%emt 00:00:04]} 2. Nf3 {[%emt 00:00:02]} Qc7
{[%emt 00:00:02]} 3. Nc3 {[%emt 00:00:19]} e6 {[%emt 00:00:01]} 4. g3 {[%emt
00:00:05]} a6 {[%emt 00:00:01]} 5. a4 {[%emt 00:00:02]} Nc6 {[%emt 00:00:01]} 6.
Bg2 b6 {[%emt 00:00:03]} 7. O-O {[%emt 00:00:02]} Bb7 {[%emt 00:00:01]} 8. d3
Nf6 {[%emt 00:00:05]} 9. Re1 {[%emt 00:00:08]} Be7 {[%emt 00:00:03]} 10. e5
{[%emt 00:00:11]} Ng4 {[%emt 00:00:11]} 11. Bf4 {[%emt 00:00:02]} h5 {[%emt
00:00:02]} 12. h3 {[%emt 00:00:43]} Nh6 {[%emt 00:00:01]} 13. Ne4 {[%emt
00:00:05]} Nf5 {[%emt 00:00:05]} 14. c3 {[%emt 00:00:06]} O-O-O {[%emt
00:01:01]} 15. d4 {[%emt 00:00:25]} d5 {[%emt 00:00:01]} 16. exd6 {[%emt
00:00:04]} Bxd6 {[%emt 00:00:02]} 17. Nxd6+ {[%emt 00:00:02]} Nxd6 {[%emt
00:00:01]} 18. dxc5 {[%emt 00:00:02]} bxc5 {[%emt 00:00:01]} 19. Qe2 {[%emt
00:00:04]} Qb6 {[%emt 00:00:11]} 20. b4 {[%emt 00:00:02]} Rhe8 {[%emt
00:00:32]} 21. Be3 {[%emt 00:00:09]} Ne4 {[%emt 00:00:27]} 22. Qc2 {[%emt
00:00:01]} f5 {[%emt 00:00:14]} 23. Rab1 {[%emt 00:00:07]} Qc7 {[%emt
00:00:10]} 24. b5 {[%emt 00:00:05]} Ne7 {[%emt 00:00:11]} 25. bxa6 {[%emt
00:00:08]} Bxa6 {[%emt 00:00:02]} 26. Bf4 {[%emt 00:00:04]} Qa5 {[%emt
00:00:18]} 27. Rb8+ {[%emt 00:00:06]} 1-0